[Event "3rd Sunway Formentera-A 2024"]
[Site "Formentera"]
[Date "2024.04.10"]
[Round "2.9"]
[White "Botez, Alexandra"]
[Black "Akshit Kumar J"]
[Result "0-1"]
[ECO "D13"]
[WhiteElo "1970"]
[BlackElo "2172"]
[Annotator "TA"]
[PlyCount "108"]
[EventDate "2024.04.03"]
[EventType "swiss"]
[EventCountry "ESP"]
[SourceTitle "playchess.com"]
[Source "ChessBase"]
[SourceQuality "1"]
[TimeControl "40/5400+30:1800+30"]

{[%evp 15,108,33,31,9,35,8,37,9,13,5,19,25,38,-81,-75,-93,-108,-101,-105,-118,-120,-131,-122,-134,-127,-135,-129,-138,-130,-144,-45,-55,-56,-128,-109,-175,-152,-139,-145,-149,-152,-146,-161,-155,-161,-156,-156,-164,-158,-163,-169,-179,-191,-190,-151,-150,-139,-311,-306,-318,-305,-310,-313,-301,-318,-278,-320,-306,-285,-389,-262,-283,-189,-183,-154,-259,-195,-270,-259,-480,-372,-360,-365,-408,-397,-862,-851,-29977,-29978,-29973,-29973,-29979,-29980,-29980,-29981]} 1. d4 {[%emt 0:00:02]} d5 {[%emt 0:00:17]} 2. c4 {[%emt 0:00:09]} c6 {[%emt 0:00:10]} 3. cxd5 {[%emt 0:00:09]} cxd5 {[%emt 0:00:07]} 4. Nc3 {[%emt 0:00:05]} Nf6 {[%emt 0:00:26]} 5. Bf4 {[%emt 0:00:32]} Nc6 {[%emt 0:00:11]} 6. e3 {[%emt 0:00:08]} a6 {[%emt 0:00:20]} 7. Be2 {[%emt 0:00:11]} Bf5 {[%emt 0:00:17]} 8. Nf3 {[%emt 0:00:17]} e6 {[%emt 0:02:21]} 9. Qb3 {[%emt 0:00:35]} Nh5 {[%emt 0:02:08]} 10. Be5 {[%emt 0:00:35]} f6 {[%emt 0:05:47]} 11. Bg3 {[%emt 0:12:51] White is slightly better.} (11. Nh4 {with more complications.} Bg6 12. Qxb7 Na5 13. Bc7) 11... Nxg3 {[%emt 0:05:42]} 12. hxg3 {[%emt 0:00:09][%cal Of3h4] next Nh4! is good for White.} Na5 {[%emt 0:09:45]} 13. Qd1 {[%emt 0:01:21]} Qb6 {[%emt 0:02:02]} 14. O-O {[%emt 0:06:43]} (14. Nh4 $1 $14 {stays ahead.} Qxb2 15. Na4 (15. Nxd5 Bc2 $15) 15... Qb4+ 16. Kf1) 14... Qxb2 $17 {[%emt 0:08:36]} 15. Na4 {[%emt 0:16:30]} Qc2 {[%emt 0:08:32] Black has more active pieces.} 16. Nb6 {[%emt 0:05:04]} Qxd1 {[%emt 0:05:34]} 17. Rfxd1 {[%emt 0:00:18]} Rd8 {[%emt 0:00:27] aiming for ...Rd6.} 18. Rdc1 {[%emt 0:08:41]} g5 {[%emt 0:01:20] Prevents Nh4.} 19. Ne1 {[%emt 0:08:33]} Ba3 {[%emt 0:05:23]} 20. Bh5+ {[%emt 0:03:08]} Ke7 {[%emt 0:02:25]} 21. Rc7+ {[%emt 0:09:37]} Kd6 {[%emt 0:00:20]} 22. Rf7 {[%emt 0:01:36][%cal Og3g4]} Kc6 {[%emt 0:10:16]} ({Better is} 22... g4 $17 23. Rxf6 Rhf8) 23. g4 $1 $15 {[%emt 0:06:07]} Be4 {[%emt 0:03:59]} (23... Kxb6 24. gxf5 exf5 25. Rxf6+ Ka7 26. Rxf5 $16) 24. Na4 {[%emt 0:01:49]} ({White should play} 24. f3 $1 $15) 24... Rhf8 $17 {[%emt 0:06:26]} 25. f3 {[%emt 0:00:34]} (25. Rg7 $17) 25... Bg6 {[%emt 0:00:56]} 26. Bxg6 {[%emt 0:00:08]} hxg6 {[%emt 0:00:05]} 27. Rg7 {[%emt 0:00:31]} Rg8 {[%emt 0:06:11]} 28. Rf7 {[%emt 0:00:25]} Rdf8 {[%emt 0:00:37]} 29. Rh7 {[%emt 0:00:08]} b5 {[%emt 0:04:04]} 30. Nc2 {[%emt 0:03:57] [#]} Bd6 {[%emt 0:00:23]} 31. Nb2 {[%emt 0:01:55]} Kb6 {[%emt 0:00:54]} 32. Nd3 {[%emt 0:01:40]} Rc8 {[%emt 0:01:46]} 33. Nce1 {[%emt 0:00:14]} Nc4 {[%emt 0:02:02]} 34. Kf2 {[%emt 0:00:22]} f5 {[%emt 0:01:40]} 35. gxf5 {[%emt 0:00:15]} gxf5 {[%emt 0:00:33]} 36. a4 $2 {[%emt 0:05:29] [#] This move loses the game for White.} (36. Rh6 $17) 36... b4 $19 {[%emt 0:01:26]} 37. Nc5 {[%emt 0:00:18]} Bxc5 {[%emt 0:01:13]} 38. dxc5+ {[%emt 0:00:05]} Kxc5 {[%emt 0:02:07]} ({Don't play} 38... Rxc5 39. Nd3 $19) 39. Nd3+ {[%emt 0:00:04]} Kd6 {[%emt 0:00:18]} 40. Nxb4 {[%emt 0:00:00]} Rb8 {[%emt 0:00:00]} 41. Nd3 {[%emt 0:02:14]} Rb3 {[%emt 0:05:10]} 42. Ke2 {[%emt 0:01:47]} Rc8 {[%emt 0:03:16][%cal Oc4e3] ...Nxe3! would now be deadly.} 43. Ra2 {[%emt 0:05:45]} Na5 {[%emt 0:05:44] And now ...Rcc3 would win.} 44. Ra7 {[%emt 0:01:32]} Rc6 {[%emt 0:00:24]} 45. Nf2 {[%emt 0:03:18]} (45. f4 $17) 45... Rbc3 {[%emt 0:01:41]} 46. Nd1 {[%emt 0:04:45]} (46. Nd3 $142) 46... Rc1 {[%emt 0:00:56]} 47. Kd2 $2 {[%emt 0:01:31]} (47. e4) 47... Nb3+ {[%emt 0:01:24]} 48. Ke1 {[%emt 0:02:03]} f4 {[%emt 0:03:35]} 49. Rb2 {[%emt 0:09:39]} Nc5 {[%emt 0:00:50]} 50. Kd2 {[%emt 0:01:39] Repels Nd3} (50. Ke2) 50... Nxa4 {[%emt 0:00:33]} 51. Rb3 {[%emt 0:01:10]} R6c2+ {[%emt 0:00:59] Black mates.} 52. Ke1 {[%emt 0:00:22]} Nb2 {[%emt 0:00:42][%csl Gb2][%cal Rc1d1]} 53. Rxa6+ {[%emt 0:00:12]} Ke5 {[%emt 0:00:05][%csl Gb2][%cal Rc1d1]} 54. exf4+ {[%emt 0:00:17]} gxf4 {[%emt 0:15:05] Weighted Error Value: White=0.51/Black=0.17 (very precise) .  Loses game:     	White=1     	---        Mistake:       	White=7     	Black=1      Inaccurate:     	White=4     	Black=4      OK:         	White=11    	Black=19     Best:        	White=1     	Black=5      Strong:       	White=1     	---} 0-1

[Event "3rd Sunway Formentera-A 2024"]
[Site "Formentera"]
[Date "2024.04.10"]
[Round "2.10"]
[White "Svensen, Tarjei Joten"]
[Black "Kazarian, Anna-Maja"]
[Result "0-1"]
[ECO "D94"]
[WhiteElo "2054"]
[BlackElo "2207"]
[Annotator "TA"]
[PlyCount "120"]
[EventDate "2024.04.03"]
[EventType "swiss"]
[EventCountry "ESP"]
[SourceTitle "playchess.com"]
[Source "ChessBase"]
[SourceQuality "1"]
[TimeControl "40/5400+30:1800+30"]

{[%evp 12,120,23,15,17,13,16,0,5,-13,-14,-46,-45,-44,-43,-41,-39,-33,-34,-33,-31,-64,-65,-64,-42,-45,-42,-45,-28,-80,-73,-68,-72,-105,-96,-125,-121,-106,-121,-125,-100,-219,-217,-227,-221,-211,-215,-235,-229,-251,-244,-317,-311,-318,-210,-213,-204,-213,-220,-232,-209,-291,-311,-254,-230,-254,-244,-381,-382,-419,-422,-420,-416,-422,-422,-422,-422,-422,-422,-420,-420,-420,-381,-384,-362,-422,-246,-505,-477,-1019,-886,-5885,-5206,-29976,-29978,-29978,-29979,-29979,-29980,-29980,-29981,-29982,-29983,-29983,-29982,-29985,-29986,-29986,-29987,-29987,-29988]} 1. d4 {[%emt 0:00:06]} d5 {[%emt 0:00:04]} 2. Nf3 {[%emt 0:00:11]} Nf6 {[%emt 0:00:05]} 3. c4 {[%emt 0:00:15]} c6 {[%emt 0:00:11]} 4. Nc3 {[%emt 0:00:51]} g6 {[%emt 0:00:30]} 5. e3 {[%emt 0:02:40]} Bg7 {[%emt 0:00:06]} 6. Bd3 {[%emt 0:00:17]} O-O {[%emt 0:00:13]} 7. h3 {[%emt 0:00:54]} b6 {[%emt 0:00:28]} 8. O-O {[%emt 0:00:43]} Bb7 {[%emt 0:00:20]} 9. b3 {[%emt 0:12:13]} c5 {[%emt 0:03:23] The position is equal.} 10. cxd5 {[%emt 0:00:43]} cxd4 {[%emt 0:00:59]} 11. exd4 {[%emt 0:00:25]} Nxd5 {[%emt 0:00:58]} 12. Nxd5 {[%emt 0:04:56]} Bxd5 {[%emt 0:09:33]} 13. Bb2 {[%emt 0:02:37]} Nc6 {[%emt 0:01:01]} 14. Ne5 {[%emt 0:01:22]} Nb4 {[%emt 0:10:33]} 15. Bc4 {[%emt 0:05:48]} Bxc4 {[%emt 0:07:15]} 16. bxc4 {[%emt 0:02:54]} Bxe5 {[%emt 0:02:32]} 17. dxe5 {[%emt 0:00:06]} Nd3 {[%emt 0:03:52]} 18. Qe2 {[%emt 0:06:42]} Nxb2 {[%emt 0:02:09]} 19. Qxb2 {[%emt 0:00:03]} Qc7 {[%emt 0:01:01]} 20. Rac1 {[%emt 0:02:58]} (20. Rfc1 $11 {remains equal.}) 20... Rfd8 $17 {[%emt 0:00:55] Black continues to play with concentration.} 21. e6 {[%emt 0:15:32]} f6 {[%emt 0:03:20]} 22. Qe2 {[%emt 0:04:21]} Rd4 {[%emt 0:04:56]} 23. Rfd1 {[%emt 0:00:21]} Rad8 {[%emt 0:00:48]} 24. Rxd4 {[%emt 0:07:59]} Rxd4 {[%emt 0:00:06][%mdl 4096] Endgame. KQR-KQR} 25. g3 {[%emt 0:06:19]} Qc6 {[%emt 0:02:18]} 26. c5 {[%emt 0:09:29]} bxc5 $19 {[%emt 0:00:42]} 27. Qb2 {[%emt 0:00:37]} Qb6 {[%emt 0:06:18]} (27... Qxe6 28. Qb8+ Kf7 29. Qxa7 $17) 28. Qa3 {[%emt 0:01:15]} Rd5 {[%emt 0:07:22]} (28... Qxe6 29. Qxa7 Rd2 (29... Qxh3 30. Qxe7 Qh5 31. Qe6+ Kg7 32. Qe7+ Kg8 33. Qe8+ Kg7 34. Qe7+ Kg8 $11) 30. Qxc5 $15) 29. Qa4 {[%emt 0:04:15]} Kg7 {[%emt 0:00:38]} (29... Qxe6 30. Qxa7 Kf7 (30... Qxh3 $2 31. Qa8+ Kg7 32. Qxd5 $18) 31. h4) 30. h4 {[%emt 0:02:00]} a6 {[%emt 0:07:25]} (30... Qxe6 31. Qxa7 Qe2 32. a4 $17) 31. Re1 {[%emt 0:03:30]} Qb4 {[%emt 0:01:05]} 32. Re4 {[%emt 0:00:56]} Qxa4 {[%emt 0:02:15]} 33. Rxa4 {[%emt 0:00:03] KR-KR} Rd6 {[%emt 0:00:12]} 34. Rc4 {[%emt 0:00:14]} Rc6 {[%emt 0:00:09][%cal Of6f5]} (34... Rxe6 35. Rxc5 Re5 36. Rc4 $17) 35. g4 {[%emt 0:00:20]} g5 {[%emt 0:00:35]} 36. Kg2 {[%emt 0:01:20]} gxh4 {[%emt 0:03:45][%cal Og7g6]} ({Weaker is} 36... Rxe6 37. hxg5 Rc6 (37... fxg5 38. Rxc5 h6 39. Kg3 $15) 38. gxf6+ Kxf6 (38... exf6 39. Kf3 $15) 39. Kf3 $15) 37. Kh3 {[%emt 0:01:09]} Kg6 {[%emt 0:03:59] ...f5 is the strong threat.} ({But not} 37... Rxe6 38. Rxc5 Re2 39. Ra5 $17) 38. Kxh4 {[%emt 0:00:54]} f5 {[%emt 0:00:22] Strongly threatening ...Kf6.} (38... Rxe6 39. Rxc5 Re2 40. Ra5 $19) 39. g5 {[%emt 0:00:16]} (39. Kg3 {was forced.}) 39... Rxe6 {[%emt 0:00:50]} 40. Rxc5 {[%emt 0:00:00]} Re4+ {[%emt 0:00:00]} 41. Kg3 {[%emt 0:00:45]} Kxg5 {[%emt 0:03:16]} 42. Ra5 {[%emt 0:01:44]} Re6 {[%emt 0:02:30]} 43. f4+ {[%emt 0:00:14]} Kf6 {[%emt 0:00:12]} 44. Kh4 {[%emt 0:00:18]} Kg6 {[%emt 0:01:25]} 45. Ra3 {[%emt 0:02:10]} Rc6 {[%emt 0:01:12]} 46. Re3 {[%emt 0:04:01]} Kf6 {[%emt 0:00:41]} 47. Ra3 {[%emt 0:01:47]} e6 {[%emt 0:17:06]} 48. Kg3 {[%emt 0:04:22]} h5 {[%emt 0:02:49] Hoping for ...Rc4.} 49. Kh4 $2 {[%emt 0:01:31]} (49. Ra5) 49... Rc4 {[%emt 0:00:42]} 50. Rxa6 {[%emt 0:00:57]} (50. Kg3 $142 h4+ 51. Kxh4 Rxf4+ 52. Kg3) 50... Rxf4+ {[%emt 0:00:07]} 51. Kxh5 {[%emt 0:00:07]} Rg4 {[%emt 0:10:54] [#] ( -> ...Rg8)} 52. a4 {[%emt 0:01:44]} Rg8 {[%emt 0:04:03][%cal Rg8h8] Black mates.} 53. Kh4 {[%emt 0:00:03]} f4 {[%emt 0:00:20]} 54. Rb6 {[%emt 0:00:29]} Kf5 {[%emt 0:00:25][%cal Rg8h8]} 55. Kh3 {[%emt 0:00:27]} e5 {[%emt 0:02:24]} 56. a5 {[%emt 0:00:15]} f3 {[%emt 0:00:39]} 57. Rb7 {[%emt 0:01:44]} Kf4 {[%emt 0:00:33]} 58. Rf7+ {[%emt 0:00:16]} Ke3 {[%emt 0:00:06]} 59. a6 {[%emt 0:00:28]} f2 {[%emt 0:00:49]} 60. a7 {[%emt 0:01:00]} Ke2 {[%emt 0:00:14] Weighted Error Value: White=0.53/Black=0.13 (very precise) .  Mistake:       	White=5     	---        Inaccurate:     	White=6     	Black=1      OK:         	White=10    	Black=25     Best:        	White=1     	Black=6} 0-1

[Event "3rd Sunway Formentera-A 2024"]
[Site "Formentera"]
[Date "2024.04.10"]
[Round "2.11"]
[White "Shimelkov, Vasiliy"]
[Black "Botez, Andrea"]
[Result "1-0"]
[ECO "E92"]
[WhiteElo "2112"]
[BlackElo "1879"]
[Annotator "TA"]
[PlyCount "91"]
[EventDate "2024.04.03"]
[EventType "swiss"]
[EventCountry "ESP"]
[SourceTitle "playchess.com"]
[Source "ChessBase"]
[SourceQuality "1"]
[TimeControl "40/5400+30:1800+30"]

{[%evp 20,91,6,0,0,0,0,0,-8,0,19,0,0,0,0,0,0,0,18,0,14,22,13,12,39,43,64,-2,-7,-28,-27,-39,-39,-41,-31,-86,-38,-37,14,0,18,36,80,73,119,116,113,129,135,131,108,117,108,93,411,373,230,200,175,163,626,613,605,147,244,239,240,228,620,619,617,629,804,816]} 1. d4 {[%emt 0:00:05]} Nf6 {[%emt 0:00:18]} 2. Nf3 {[%emt 0:00:09]} g6 {[%emt 0:00:03]} 3. c4 {[%emt 0:00:09]} Bg7 {[%emt 0:00:06]} 4. Nc3 {[%emt 0:00:07]} d6 {[%emt 0:00:06]} 5. e4 {[%emt 0:00:06]} O-O {[%emt 0:00:12]} 6. Be2 {[%emt 0:00:13]} e5 {[%emt 0:00:28]} 7. dxe5 {[%emt 0:00:24]} dxe5 {[%emt 0:00:05]} 8. Qxd8 {[%emt 0:00:07]} Rxd8 {[%emt 0:00:03]} 9. Bg5 {[%emt 0:00:09]} Re8 {[%emt 0:00:11]} 10. O-O-O {[%emt 0:00:09]} Na6 {[%emt 0:04:23][%cal Bb8a6,Ba6c7,Bc7e6][%mdl 32]} 11. Nd2 {[%emt 0:07:19]} c6 {[%emt 0:04:05]} 12. Nb3 {[%emt 0:01:22]} Nc7 {[%emt 0:01:27]} 13. f3 {[%emt 0:01:48]} Ne6 {[%emt 0:01:25] The position is equal.} 14. Be3 {[%emt 0:00:09]} Bf8 {[%emt 0:00:40]} 15. g3 {[%emt 0:01:12]} Nd7 {[%emt 0:05:07]} 16. Rd2 {[%emt 0:07:59]} Ndc5 {[%emt 0:06:13]} 17. Na5 {[%emt 0:13:07]} Be7 {[%emt 0:14:34]} 18. Rhd1 {[%emt 0:02:58]} Kg7 {[%emt 0:02:02]} 19. f4 {[%emt 0:03:28]} Bf6 {[%emt 0:04:07]} 20. Bf3 {[%emt 0:08:50]} h5 {[%emt 0:13:52]} 21. Bg2 {[%emt 0:03:22]} Na6 {[%emt 0:11:19]} 22. Nb3 {[%emt 0:02:53]} Nec7 {[%emt 0:06:16]} 23. h3 {[%emt 0:06:17]} (23. f5 $14) 23... h4 $11 {[%emt 0:05:25]} 24. gxh4 {[%emt 0:02:57][%cal Oh4h5]} exf4 {[%emt 0:00:22]} 25. Bxf4 {[%emt 0:00:13][%cal Oh4h5]} Bxh4 {[%emt 0:02:08]} 26. Be3 {[%emt 0:07:52]} Ne6 {[%emt 0:00:49]} 27. Nd4 {[%emt 0:01:40]} (27. Rf1 $15) 27... Bf6 {[%emt 0:02:29]} ({Black should play} 27... Nxd4 $17 28. Bxd4+ Bf6 29. Bxf6+ Kxf6) 28. Nf3 {[%emt 0:00:49]} Rh8 {[%emt 0:07:33]} (28... Be7 $15) 29. e5 {[%emt 0:01:07]} Be7 {[%emt 0:00:09]} 30. Ne4 {[%emt 0:00:44]} Bb4 {[%emt 0:02:19]} 31. Rf2 {[%emt 0:00:41] White is much more active.} Bc5 {[%emt 0:02:09]} (31... Rh5 $142) 32. Nxc5 $16 {[%emt 0:03:31]} Nexc5 {[%emt 0:00:21] [#]} 33. Ng5 $1 {[%emt 0:03:02]} Bf5 {[%emt 0:00:28] [#]} 34. b4 $1 {[%emt 0:05:12][%mdl 512]} Ne6 {[%emt 0:00:55]} 35. Nxe6+ {[%emt 0:00:40]} Bxe6 {[%emt 0:00:06] Black is weak on the dark squares} 36. Bg5 {[%emt 0:00:10] Inhibits Rh4.} Rhe8 $2 {[%emt 0:02:55][%mdl 8192] Black cannot hold the game after this.} (36... Rh5 $16 37. Bf6+ Kh6) 37. Bf6+ $18 {[%emt 0:00:27]} Kh6 {[%emt 0:00:48]} 38. a3 {[%emt 0:01:32] Black must now prevent Rg1.} Nc7 {[%emt 0:01:00][%cal Oa7a5]} 39. Bf3 $40 {[%emt 0:02:09][%mdl 128] White attacks with force.} Bf5 $2 {[%emt 0:02:12]} (39... Rg8) 40. Rd4 {[%emt 0:00:00]} g5 {[%emt 0:00:00][%cal Bg6g5,Bg5g4][%mdl 32] [#] Prevents Rh4+} 41. Bxc6 $2 {[%emt 0:01:42]} Ne6 {[%emt 0:10:06]} (41... bxc6 $16 42. Rxf5 Ne6) 42. Bxe8 {[%emt 0:00:31] This pair of bishops is nice.} Nxd4 {[%emt 0:00:04]} 43. Bxf7 {[%emt 0:00:11][%cal Oe5e6] Strongly threatening e6!} Bxh3 {[%emt 0:04:09]} (43... Be6) 44. Rh2 {[%emt 0:00:41][%cal Rh2h3] White is clearly winning.} g4 {[%emt 0:00:06]} 45. e6 {[%emt 0:00:29]} Nf3 {[%emt 0:00:58]} 46. Rh1 {[%emt 0:00:09] Weighted Error Value: White=0.25 (precise) /Black=0.59.  Loses game:     	---       	Black=1      Mistake:       	White=2     	Black=5      Inaccurate:     	---       	Black=2      OK:         	White=13    	Black=10     Best:        	White=3     	Black=5      Strong:       	White=1     	---        Brilliant:      	White=1     	---} 1-0

[Event "3rd Sunway Formentera-A 2024"]
[Site "Formentera"]
[Date "2024.04.10"]
[Round "2.12"]
[White "Pranav, V."]
[Black "Tsatsalashvili, Keti"]
[Result "1-0"]
[ECO "B12"]
[WhiteElo "2604"]
[BlackElo "2315"]
[Annotator "TA"]
[PlyCount "73"]
[EventDate "2024.04.03"]
[EventType "swiss"]
[EventCountry "ESP"]
[SourceTitle "playchess.com"]
[Source "ChessBase"]
[SourceQuality "1"]
[TimeControl "40/5400+30:1800+30"]

{[%evp 12,73,33,23,24,31,42,13,42,20,50,50,48,44,46,37,43,39,84,82,84,46,108,88,120,78,112,126,137,81,88,71,189,185,188,187,179,148,308,173,370,376,375,384,591,542,581,555,565,566,747,747,1006,1018,1011,974,6891,6817,2672,2477,1404,1035,1671,1384]} 1. e4 {[%emt 0:00:02]} c6 {[%emt 0:00:20]} 2. d4 {[%emt 0:00:08]} d5 {[%emt 0:00:06]} 3. e5 {[%emt 0:00:06]} Bf5 {[%emt 0:00:27]} 4. Nf3 {[%emt 0:00:09]} e6 {[%emt 0:00:30]} 5. Be2 {[%emt 0:00:07]} Ne7 {[%emt 0:01:51]} 6. O-O {[%emt 0:00:10]} Nd7 {[%emt 0:00:10]} 7. c3 {[%emt 0:00:10]} Bg6 {[%emt 0:00:19]} 8. Nh4 {[%emt 0:01:57]} Nf5 {[%emt 0:01:02]} 9. Nxg6 {[%emt 0:00:39]} hxg6 {[%emt 0:00:07] The position is equal.} 10. Nd2 {[%emt 0:03:13]} Be7 {[%emt 0:04:10]} 11. Nf3 {[%emt 0:04:45]} Rc8 {[%emt 0:01:05]} 12. g4 {[%emt 0:14:24]} Nh4 {[%emt 0:01:10]} 13. Nxh4 {[%emt 0:00:14]} Rxh4 {[%emt 0:01:54]} 14. f4 {[%emt 0:00:19]} Nf8 {[%emt 0:07:30]} 15. Be3 {[%emt 0:01:22]} a6 {[%emt 0:02:07][%cal Ba7a6,Ba6a5][%mdl 32]} 16. Bd3 {[%emt 0:04:47]} Qb6 {[%emt 0:06:15]} (16... f5 $14) 17. b4 {[%emt 0:05:34][%cal Bb2b4,Bb4b5][%mdl 32]} a5 {[%emt 0:04:10]} 18. a3 {[%emt 0:00:44][%cal Ba2a3,Ba3a4][%mdl 32]} Ra8 {[%emt 0:01:00]} 19. Qf3 {[%emt 0:01:32] aiming for f5.} Qd8 {[%emt 0:15:49]} 20. Kh1 {[%emt 0:06:53] White is more active.} (20. Bf2 $142) 20... f5 $16 {[%emt 0:06:03]} 21. exf6 {[%emt 0:05:19]} Bxf6 {[%emt 0:01:53]} (21... gxf6 $16 {was necessary.} 22. Bf2 Rh8) 22. b5 $18 {[%emt 0:11:42]} Qd6 {[%emt 0:03:22]} 23. a4 {[%emt 0:01:49]} Kf7 {[%emt 0:04:26]} 24. Ra2 {[%emt 0:01:06]} cxb5 $2 {[%emt 0:01:36] A mistake that costs the game.} (24... Kg8 $16 25. Re2 Qa3) 25. Bxb5 {[%emt 0:00:17]} ({Not} 25. axb5 Kg8 26. Bf2 Rh7 $18) (25. Bf2 $142) 25... Rc8 $2 {[%emt 0:00:15]} (25... Kg8 26. Rg2 Rd8) 26. Bf2 {[%emt 0:01:20][%cal Be3f2,Bf2g3,Bg3f4][%mdl 32]} Rh8 {[%emt 0:01:47]} 27. Bg3 {[%emt 0:00:18] [#] Hoping for f5. This pair of bishops is nice.} Qd8 {[%emt 0:05:17]} (27... Rh3 $142 28. Kg2 Rxg3+ 29. hxg3 Kg8) 28. Re2 {[%emt 0:00:29] White is clearly winning.} Kg8 {[%emt 0:01:01]} 29. f5 {[%emt 0:01:34]} gxf5 {[%emt 0:02:22]} 30. gxf5 {[%emt 0:00:21][%cal Bg4f5,Bf5e6,Be6f7][%mdl 32]} Nh7 {[%emt 0:01:31]} 31. Bf4 {[%emt 0:06:20]} Ng5 {[%emt 0:01:52]} 32. Bxg5 {[%emt 0:00:25]} Bxg5 {[%emt 0:00:05] Black is weak on the light squares} 33. fxe6 {[%emt 0:00:11] [#] Qf7+ would kill now.} Qe7 {[%emt 0:01:38]} 34. Qf7+ {[%emt 0:02:02]} Qxf7 {[%emt 0:00:06]} 35. exf7+ {[%emt 0:00:04]} Kh7 {[%emt 0:00:14]} 36. Re8 {[%emt 0:00:12]} Bf6 {[%emt 0:00:19]} 37. Rfe1 {[%emt 0:00:45] Weighted Error Value: White=0.17 (very precise) /Black=0.51.  Mistake:       	White=2     	Black=5      Inaccurate:     	White=2     	Black=7      OK:         	White=10    	Black=5      Best:        	White=2     	---} 1-0

[Event "3rd Sunway Formentera-A 2024"]
[Site "Formentera"]
[Date "2024.04.11"]
[Round "3.1"]
[White "Donchenko, Alexander"]
[Black "Balakrishnan, Praveen"]
[Result "1/2-1/2"]
[ECO "D02"]
[WhiteElo "2633"]
[BlackElo "2500"]
[Annotator "TA"]
[PlyCount "65"]
[EventDate "2024.04.03"]
[EventType "swiss"]
[EventCountry "ESP"]
[SourceTitle "playchess.com"]
[Source "ChessBase"]
[SourceQuality "1"]
[TimeControl "40/5400+30:1800+30"]

{[%evp 11,65,16,8,8,10,10,8,17,43,9,4,6,60,56,60,64,57,22,15,10,22,25,41,35,39,12,9,0,0,0,0,0,0,0,8,6,12,0,0,0,0,0,0,0,0,0,0,0,0,0,0,0,0,0,0,-5]} 1. Nf3 {[%emt 0:00:03]} Nf6 {[%emt 0:05:28]} 2. d4 {[%emt 0:01:17]} d5 {[%emt 0:00:22]} 3. Bf4 {[%emt 0:00:12]} c5 {[%emt 0:00:08]} 4. e3 {[%emt 0:00:10]} Nc6 {[%emt 0:00:06]} 5. Nbd2 {[%emt 0:00:14]} Bg4 {[%emt 0:00:08]} 6. c3 {[%emt 0:00:37][%cal Bc2c3,Bc3c4][%mdl 32]} e6 {[%emt 0:00:13]} 7. Bb5 {[%emt 0:00:26]} Nd7 {[%emt 0:05:22]} 8. h3 {[%emt 0:12:20]} Bh5 {[%emt 0:06:30]} 9. O-O {[%emt 0:06:02]} a6 {[%emt 0:10:01]} 10. Be2 {[%emt 0:18:22]} Be7 {[%emt 0:05:50]} 11. c4 {[%emt 0:10:20]} Nb6 {[%emt 0:14:52]} ({Black should play} 11... O-O $11) 12. dxc5 $14 {[%emt 0:01:49]} Bxc5 {[%emt 0:02:37]} 13. Rc1 {[%emt 0:01:03] [#] cxd5 is the strong threat.} Be7 {[%emt 0:10:33]} 14. Ne5 {[%emt 0:15:40]} Bxe2 {[%emt 0:03:18]} 15. Qxe2 {[%emt 0:00:05]} Nxe5 {[%emt 0:02:00]} 16. Bxe5 {[%emt 0:00:03]} Bf6 {[%emt 0:06:37]} 17. Bxf6 {[%emt 0:01:10]} Qxf6 {[%emt 0:00:07]} 18. e4 {[%emt 0:04:52]} dxc4 {[%emt 0:03:36] The position is equal.} 19. Nxc4 {[%emt 0:01:29]} Nxc4 {[%emt 0:00:22]} 20. Rxc4 {[%emt 0:00:05]} O-O {[%emt 0:02:46]} 21. Rc7 {[%emt 0:00:37]} b5 {[%emt 0:00:52]} 22. Rfc1 {[%emt 0:04:20]} Qe5 {[%emt 0:05:45]} 23. R1c5 {[%emt 0:01:54]} Qd4 {[%emt 0:00:28]} 24. R5c6 {[%emt 0:01:58]} h6 {[%emt 0:02:01]} 25. e5 {[%emt 0:03:30]} Rfd8 {[%emt 0:01:05]} 26. g3 {[%emt 0:03:21]} Qd1+ {[%emt 0:02:44]} 27. Qxd1 {[%emt 0:00:06]} Rxd1+ $11 {[%emt 0:00:06][%mdl 4096] Endgame. KRR-KRR} 28. Kg2 {[%emt 0:00:04]} Rd5 {[%emt 0:00:56]} 29. Rc5 {[%emt 0:02:10]} Rad8 {[%emt 0:00:15]} 30. Rxd5 {[%emt 0:00:23]} Rxd5 {[%emt 0:00:06]} 31. Ra7 {[%emt 0:00:05]} Rd2 {[%emt 0:00:08]} 32. Rxa6 {[%emt 0:00:27]} Rxb2 {[%emt 0:00:06]} 33. a4 {[%emt 0:00:11] Weighted Error Value: White=0.06 (flawless) /Black=0.06 (flawless) .  Mistake:       	---       	Black=1      Inaccurate:     	White=3     	Black=1      OK:         	White=9     	Black=10     Best:        	White=2     	Black=1} 1/2-1/2